fUST/lending_fUST_20251006
["ID","MTS","AMOUNT","RATE_DAILY","PERIOD"]
[389524454,1759696244855,-151.0,0.00017534,2]
[389524456,1759696244864,-500.0,0.00017534,2]
[389524458,1759696244875,-151.0,0.00017534,2]
[389524460,1759696244884,-500.0,0.00017534,2]
[389524462,1759696244894,-500.0,0.00017534,2]
[389524464,1759696244903,-151.0,0.00017534,2]
[389524466,1759696244913,-151.0,0.00017534,2]
[389524468,1759696244922,-622.16,0.00017534,2]
[389524470,1759696244931,-500.0,0.00017534,2]
[389524472,1759696244940,-1588.0,0.00017534,2]
[389524474,1759696244950,-500.0,0.00017534,2]
[389524476,1759696244959,-500.0,0.00017534,2]
[389524478,1759696244968,-500.0,0.00017534,2]
[389524480,1759696244978,-151.0,0.00017534,2]
[389524482,1759696244987,-294.54371362,0.00017534,2]
[389524484,1759696244997,-151.0,0.00017534,2]
[389524486,1759696245006,-500.0,0.00017534,2]
[389524488,1759696245016,-151.0,0.00017534,2]
[389524490,1759696245026,-500.0,0.00017534,2]
[389524492,1759696245035,-151.0,0.00017534,2]
[389524494,1759696245044,-151.0,0.00017534,2]
[389524496,1759696245054,-546.32,0.00017534,2]
[389524498,1759696245063,-687.49,0.00017534,2]
[389524501,1759696245073,-1281.47,0.00017534,2]
[389524503,1759696245082,-500.0,0.00017534,2]
[389524505,1759696245092,-151.0,0.00017534,2]
[389524507,1759696245101,-151.0,0.00017534,2]
[389524509,1759696245111,-151.0,0.00017534,2]
[389524511,1759696245119,-151.0,0.00017534,2]
[389524513,1759696245129,-178.71656,0.00017534,2]
[389524515,1759696245138,-151.0,0.00017534,2]
[389524517,1759696245148,-500.0,0.00017534,2]
[389524519,1759696245157,-151.0,0.00017534,2]
[389524521,1759696245167,-178.71656,0.00017534,2]
[389524523,1759696245176,-2030.62,0.00017534,2]
[389524525,1759696245186,-178.71656,0.00017534,2]
[389524527,1759696245195,-151.0,0.00017534,2]
[389524529,1759696245205,-151.0,0.00017534,2]
[389524531,1759696245214,-178.71656,0.00017534,2]
[389524533,1759696245224,-151.0,0.00017534,2]
[389524535,1759696245233,-151.0,0.00017534,2]
[389524537,1759696245243,-500.0,0.00017534,2]
[389524539,1759696245252,-1825.8,0.00017534,2]
[389524541,1759696245262,-151.0,0.00017534,2]
[389524543,1759696245271,-3562.67,0.00017534,2]
[389524545,1759696245280,-500.0,0.00017534,2]
[389524547,1759696245290,-500.0,0.00017534,2]
[389524549,1759696245299,-151.0,0.00017534,2]
[389524551,1759696245308,-151.0,0.00017534,2]
[389524553,1759696245318,-765.86,0.00017534,2]
[389524555,1759696245327,-709.77,0.00017534,2]
[389524557,1759696245337,-1088.95,0.00017534,2]
[389524559,1759696245346,-1361.22,0.00017534,2]
[389524561,1759696245355,-151.659466,0.00017534,2]
[389524564,1759696245364,-2710.39,0.00017534,2]
[389524566,1759696245374,-151.0,0.00017534,2]
[389524568,1759696245383,-151.0,0.00017534,2]
[389524570,1759696245395,-500.0,0.00017534,2]
[389524572,1759696245404,-551.93,0.00017534,2]
[389524574,1759696245413,-1768.49,0.00017534,2]
[389524576,1759696245423,-151.0,0.00017534,2]
[389524578,1759696245432,-500.0,0.00017534,2]
[389524580,1759696245441,-771.43,0.00017534,2]
[389524582,1759696245451,-1381.98,0.00017534,2]
[389524584,1759696245460,-500.0,0.00017534,2]
[389524586,1759696245470,-500.0,0.00017534,2]
[389524588,1759696245479,-151.0,0.00017534,2]
[389524590,1759696245488,-151.0,0.00017534,2]
[389524592,1759696245497,-151.0,0.00017534,2]
[389524594,1759696245506,-2117.33,0.00017534,2]
[389524596,1759696245515,-500.0,0.00017534,2]
[389524598,1759696245524,-265.461331,0.00017534,2]
[389524600,1759696245534,-151.0,0.00017534,2]
[389524603,1759696245543,-500.0,0.00017534,2]
[389524605,1759696245552,-500.0,0.00017534,2]
[389524607,1759696245563,-500.0,0.00017534,2]
[389524609,1759696245572,-574.28,0.00017534,2]
[389524611,1759696245581,-151.0,0.00017534,2]
[389524613,1759696245590,-240.984144,0.00017534,2]
[389524615,1759696245599,-657.33,0.00017534,2]
[389524617,1759696245609,-178.42926708,0.00017534,2]
[389524619,1759696245619,-2796.46,0.00017534,2]
[389524621,1759696245628,-1291.16,0.00017534,2]
[389524623,1759696245637,-777.84,0.00017534,2]
[389524625,1759696245647,-500.0,0.00017534,2]
[389524627,1759696245657,-500.0,0.00017534,2]
[389524629,1759696245666,-2593.73,0.00017534,2]
[389524631,1759696245676,-706.55,0.00017534,2]
[389524633,1759696245685,-2067.68,0.00017534,2]
[389524635,1759696245695,-646.24,0.00017534,2]
[389524638,1759696245704,-500.0,0.00017534,2]
[389524640,1759696245714,-500.0,0.00017534,2]
[389524642,1759696245724,-500.0,0.00017534,2]
[389524644,1759696245733,-693.69,0.00017534,2]
[389524646,1759696245742,-151.0,0.00017534,2]
[389524648,1759696245752,-500.0,0.00017534,2]
[389524650,1759696245761,-500.0,0.00017534,2]
[389524652,1759696245770,-885.41,0.00017534,2]
[389524654,1759696245780,-151.0,0.00017534,2]
[389524656,1759696245794,-500.0,0.00017534,2]
[389524658,1759696245804,-151.0,0.00017534,2]
[389524660,1759696245813,-1151.08,0.00017534,2]
[389524662,1759696245823,-1635.61,0.00017534,2]
[389524664,1759696245834,-151.0,0.00017534,2]
[389524666,1759696245844,-506.71,0.00017534,2]
[389524668,1759696245854,-151.0,0.00017534,2]
[389524670,1759696245864,-625.95,0.00017534,2]
[389524672,1759696245874,-151.0,0.00017534,2]
[389524674,1759696245884,-151.0,0.00017534,2]
[389524676,1759696245893,-151.0,0.00017534,2]
[389524679,1759696245903,-1060.92,0.00017534,2]
[389524680,1759696245913,-500.0,0.00017534,2]
[389524681,1759696245922,-808.44,0.00017534,2]
[389524682,1759696245932,-1715.53,0.00017534,2]
[389524683,1759696245940,-987.68,0.00017534,2]
[389524684,1759696245951,-500.0,0.00017534,2]
[389524685,1759696245960,-2057.78,0.00017534,2]
[389524686,1759696245970,-500.0,0.00017534,2]
[389524687,1759696245979,-500.0,0.00017534,2]
[389524688,1759696245990,-643.79,0.00017534,2]
[389524689,1759696245999,-151.0,0.00017534,2]
[389524690,1759696246009,-151.0,0.00017534,2]
[389524691,1759696246018,-500.0,0.00017534,2]
[389524692,1759696246028,-500.0,0.00017534,2]
[389524693,1759696246037,-500.0,0.00017534,2]
[389524694,1759696246046,-4584.6,0.00017534,2]
[389524695,1759696246055,-500.0,0.00017534,2]
[389524696,1759696246064,-2685.58,0.00017534,2]
[389524697,1759696246075,-500.0,0.00017534,2]
[389524698,1759696246084,-519.89,0.00017534,2]
[389524699,1759696246093,-581.87,0.00017534,2]
[389524700,1759696246102,-994.82,0.00017534,2]
[389524701,1759696246111,-500.0,0.00017534,2]
[389524702,1759696246121,-500.0,0.00017534,2]
[389524703,1759696246130,-500.0,0.00017534,2]
[389524704,1759696246139,-1202.1,0.00017534,2]
[389524705,1759696246149,-1662.96,0.00017534,2]
[389524706,1759696246158,-4191.05,0.00017534,2]
[389524707,1759696246168,-1236.77,0.00017534,2]
[389524708,1759696246178,-699.72,0.00017534,2]
[389524709,1759696246187,-1084.39,0.00017534,2]
[389524710,1759696246197,-500.0,0.00017534,2]
[389524711,1759696246207,-1161.3,0.00017534,2]
[389524712,1759696246217,-622.5,0.00017534,2]
[389524713,1759696246226,-3974.01,0.00017534,2]
[389524714,1759696246236,-1648.65,0.00017534,2]
[389524715,1759696246245,-701.42,0.00017534,2]
[389524716,1759696246255,-372.0,0.00017538,2]
[389524717,1759696246265,-1000.0,0.000176,2]
[389524722,1759696246447,-2109.13272147,0.000176,2]
[389524723,1759696246464,-1356.6134632,0.00017643,2]
[389524724,1759696246474,-151.0,0.00017687,2]
[389524725,1759696246483,-151.0,0.00017687,2]
[389524726,1759696246492,-151.0,0.00017687,2]
[389524727,1759696246502,-151.0,0.00017687,2]
[389524728,1759696246511,-151.0,0.00017687,2]
[389524729,1759696246521,-153.189557,0.00017687,2]
[389524730,1759696246529,-151.0,0.00017687,2]
[389524731,1759696246539,-151.0,0.00017687,2]
[389524732,1759696246548,-151.0,0.00017687,2]
[389524733,1759696246558,-179.405922,0.00017687,2]
[389524734,1759696246567,-151.0,0.00017687,2]
[389524735,1759696246576,-151.0,0.00017687,2]
[389524736,1759696246586,-291.947041,0.00017687,2]
[389524737,1759696246595,-151.0,0.00017687,2]
[389524738,1759696246604,-151.0,0.00017687,2]
[389524739,1759696246613,-151.0,0.00017687,2]
[389524740,1759696246622,-151.0,0.00017687,2]
[389524742,1759696246631,-151.0,0.00017687,2]
[389524744,1759696246640,-151.0,0.00017687,2]
[389524745,1759696246649,-151.0,0.00017687,2]
[389524746,1759696246658,-151.0,0.00017687,2]
[389524747,1759696246666,-151.0,0.00017687,2]
[389524748,1759696246675,-151.0,0.00017687,2]
[389524749,1759696246685,-151.0,0.00017687,2]
[389524750,1759696246694,-151.0,0.00017687,2]
[389524751,1759696246703,-151.0,0.00017687,2]
[389524752,1759696246712,-13942.8695368,0.00017755,2]
[389524754,1759696246721,-406.5727509,0.00017755,2]
[389524756,1759696246730,-12214.9546313,0.00017755,2]
[389524758,1759696246739,-19292.2273969,0.00017765,2]
[389524759,1759696246748,-168.3888056,0.00017765,2]
[389524760,1759696246758,-5888.0,0.00017771,2]
[389524761,1759696246767,-6197.37465442,0.000178,2]
[389524762,1759696246776,-151.0,0.000178,2]
[389524763,1759696246787,-151.0,0.000178,2]
[389524764,1759696246800,-161.898412,0.000178,2]
[389524766,1759696246810,-155.610953,0.000178,2]
[389524768,1759696246819,-2000.0,0.000178,2]
[389524769,1759696246828,-500.0,0.00017808,2]
[389524770,1759696246838,-500.0,0.00017808,2]
[389524771,1759696246848,-290.8798321,0.00017808,2]
[389524772,1759696246858,-151.0,0.00017808,2]
[389524773,1759696246869,-198.0,0.00017808,2]
[389524774,1759696246880,-500.0,0.00017808,2]
[389524775,1759696246890,-151.0,0.00017808,2]
[389524776,1759696246900,-151.0,0.00017808,2]
[389524777,1759696246910,-282.42674795,0.00017808,2]
[389524778,1759696246920,-500.0,0.00017808,2]
[389524779,1759696246930,-1588.0,0.00017808,2]
[389524780,1759696246941,-500.0,0.00017808,2]
[389524781,1759696246951,-500.0,0.00017808,2]
[389524782,1759696246960,-500.0,0.00017808,2]
[389524783,1759696246970,-500.0,0.00017808,2]
[389524784,1759696246979,-151.0,0.00017808,2]
[389524785,1759696246988,-500.0,0.00017808,2]
[389524786,1759696246998,-229.67497462,0.00017808,2]
[389524787,1759696247007,-160.376868,0.00017808,2]
[389524788,1759696247016,-151.0,0.00017808,2]
[389524789,1759696247025,-151.0,0.00017808,2]
[389524790,1759696247035,-500.0,0.00017808,2]
[389524791,1759696247044,-500.0,0.00017808,2]
[389524792,1759696247053,-500.0,0.00017808,2]
[389524793,1759696247062,-500.0,0.00017808,2]
[389524794,1759696247071,-500.0,0.00017808,2]
[389524795,1759696247081,-500.0,0.00017808,2]
[389524796,1759696247090,-1329.44,0.00017808,2]
[389524797,1759696247099,-500.0,0.00017808,2]
[389524798,1759696247108,-500.0,0.00017808,2]
[389524799,1759696247117,-603.82,0.00017808,2]
[389524800,1759696247126,-500.0,0.00017808,2]
[389524801,1759696247136,-500.0,0.00017808,2]
[389524802,1759696247145,-500.0,0.00017808,2]
[389524803,1759696247155,-866.6,0.00017808,2]
[389524804,1759696247164,-500.0,0.00017808,2]
[389524805,1759696247173,-903.49,0.00017808,2]
[389524806,1759696247183,-500.0,0.00017808,2]
[389524807,1759696247192,-462.29215087,0.00017808,2]
[389524808,1759696247202,-753.86,0.00017808,2]
[389524809,1759696247211,-500.0,0.00017808,2]
[389524810,1759696247220,-535.36,0.00017808,2]
[389524811,1759696247229,-1057.0,0.00017808,2]
[389524812,1759696247238,-500.0,0.00017808,2]
[389524813,1759696247247,-500.0,0.00017808,2]
[389524814,1759696247256,-907.23,0.00017808,2]
[389524815,1759696247267,-500.0,0.00017808,2]
[389524816,1759696247276,-500.0,0.00017808,2]
[389524817,1759696247285,-500.0,0.00017808,2]
[389524818,1759696247295,-500.0,0.00017808,2]
[389524819,1759696247304,-719.91,0.00017808,2]
[389524820,1759696247313,-599.77,0.00017808,2]
[389524821,1759696247322,-608.5,0.00017808,2]
[389524822,1759696247332,-589.57,0.00017808,2]
[389524823,1759696247341,-601.37,0.00017808,2]
[389524824,1759696247352,-500.0,0.00017808,2]
[389524825,1759696247361,-813.95,0.00017808,2]
[389524826,1759696247370,-500.0,0.00017808,2]
[389524827,1759696247379,-500.0,0.00017808,2]
[389524828,1759696247388,-500.0,0.00017808,2]
[389524829,1759696247397,-500.0,0.00017808,2]
[389524830,1759696247407,-1289.44,0.00017808,2]
[389524831,1759696247416,-500.0,0.00017808,2]
[389524832,1759696247425,-503.88,0.00017808,2]
[389524833,1759696247434,-500.0,0.00017808,2]
[389524834,1759696247443,-734.8,0.00017808,2]
[389524835,1759696247453,-500.0,0.00017808,2]
[389524836,1759696247462,-500.0,0.00017808,2]
[389524837,1759696247471,-500.0,0.00017808,2]
[389524838,1759696247481,-622.16,0.00017808,2]
[389524839,1759696247490,-500.0,0.00017808,2]
[389524840,1759696247500,-546.32,0.00017808,2]
[389524841,1759696247511,-687.49,0.00017808,2]
[389524842,1759696247522,-1281.47,0.00017808,2]
[389524843,1759696247531,-500.0,0.00017808,2]
[389524844,1759696247541,-500.0,0.00017808,2]
[389524845,1759696247550,-2030.62,0.00017808,2]
[389524846,1759696247559,-500.0,0.00017808,2]
[389524847,1759696247569,-1825.8,0.00017808,2]
[389524848,1759696247579,-3562.67,0.00017808,2]
[389524849,1759696247587,-500.0,0.00017808,2]
[389524850,1759696247597,-500.0,0.00017808,2]
[389524851,1759696247606,-765.86,0.00017808,2]
[389524852,1759696247615,-709.77,0.00017808,2]
[389524853,1759696247624,-1088.95,0.00017808,2]
[389524854,1759696247634,-1361.22,0.00017808,2]
[389524855,1759696247643,-2710.39,0.00017808,2]
[389524856,1759696247652,-500.0,0.00017808,2]
[389524857,1759696247661,-551.93,0.00017808,2]
[389524858,1759696247670,-1768.49,0.00017808,2]
[389524859,1759696247679,-500.0,0.00017808,2]
[389524860,1759696247687,-771.43,0.00017808,2]
[389524861,1759696247696,-1381.98,0.00017808,2]
[389524862,1759696247706,-500.0,0.00017808,2]
[389524863,1759696247715,-500.0,0.00017808,2]
[389524864,1759696247725,-2117.33,0.00017808,2]
[389524865,1759696247734,-500.0,0.00017808,2]
[389524866,1759696247744,-500.0,0.00017808,2]
[389524867,1759696247753,-500.0,0.00017808,2]
[389524868,1759696247762,-500.0,0.00017808,2]
[389524869,1759696247771,-574.28,0.00017808,2]
[389524870,1759696247781,-657.33,0.00017808,2]
[389524871,1759696247796,-2796.46,0.00017808,2]
[389524872,1759696247807,-1291.16,0.00017808,2]
[389524873,1759696247817,-777.84,0.00017808,2]
[389524874,1759696247826,-500.0,0.00017808,2]
[389524875,1759696247837,-2593.73,0.00017808,2]
[389524876,1759696247846,-706.55,0.00017808,2]
[389524877,1759696247857,-2067.68,0.00017808,2]
[389524878,1759696247867,-646.24,0.00017808,2]
[389524879,1759696247876,-500.0,0.00017808,2]
[389524880,1759696247885,-500.0,0.00017808,2]
[389524881,1759696247895,-500.0,0.00017808,2]
[389524882,1759696247906,-693.69,0.00017808,2]
[389524883,1759696247915,-500.0,0.00017808,2]
[389524884,1759696247924,-500.0,0.00017808,2]
[389524885,1759696247934,-885.41,0.00017808,2]
[389524886,1759696247950,-500.0,0.00017808,2]
[389524887,1759696247959,-1151.08,0.00017808,2]
[389524888,1759696247968,-1635.61,0.00017808,2]
[389524889,1759696247977,-506.71,0.00017808,2]
[389524890,1759696247986,-625.95,0.00017808,2]
[389524891,1759696247995,-500.0,0.00017808,2]
[389524892,1759696248004,-1060.92,0.00017808,2]
[389524893,1759696248013,-808.44,0.00017808,2]
[389524894,1759696248022,-1715.53,0.00017808,2]
[389524895,1759696248031,-987.68,0.00017808,2]
[389524896,1759696248040,-500.0,0.00017808,2]
[389524897,1759696248049,-2057.78,0.00017808,2]
[389524898,1759696248059,-500.0,0.00017808,2]
[389524899,1759696248068,-500.0,0.00017808,2]
[389524900,1759696248077,-643.79,0.00017808,2]
[389524901,1759696248087,-500.0,0.00017808,2]
[389524902,1759696248096,-453.30780812,0.00017808,2]
[389524903,1759696248106,-500.0,0.00017808,2]
[389524904,1759696248115,-4584.6,0.00017808,2]
[389524905,1759696248126,-500.0,0.00017808,2]
[389524906,1759696248135,-151.0,0.00017808,2]
[389524907,1759696248144,-2685.58,0.00017808,2]
[389524908,1759696248153,-500.0,0.00017808,2]
[389524909,1759696248163,-519.89,0.00017808,2]
[389524910,1759696248172,-581.87,0.00017808,2]
[389524911,1759696248181,-994.82,0.00017808,2]
[389524912,1759696248190,-500.0,0.00017808,2]
[389524913,1759696248200,-500.0,0.00017808,2]
[389524914,1759696248209,-500.0,0.00017808,2]
[389524915,1759696248218,-1202.1,0.00017808,2]
[389524916,1759696248228,-1662.96,0.00017808,2]
[389524917,1759696248238,-4191.05,0.00017808,2]
[389524918,1759696248247,-1236.77,0.00017808,2]
[389524919,1759696248256,-699.72,0.00017808,2]
[389524920,1759696248267,-151.0,0.00017808,2]
[389524921,1759696248276,-151.0,0.00017808,2]
[389524922,1759696248285,-1084.39,0.00017808,2]
[389524923,1759696248295,-500.0,0.00017808,2]
[389524924,1759696248304,-1161.3,0.00017808,2]
[389524925,1759696248314,-622.5,0.00017808,2]
[389524926,1759696248323,-3974.01,0.00017808,2]
[389524927,1759696248331,-1648.65,0.00017808,2]
[389524928,1759696248341,-701.42,0.00017808,2]
[389524929,1759696248350,-500.0,0.00017825,2]
[389524930,1759696248359,-341.40647495,0.00017825,2]
[389524931,1759696248368,-508.0379864,0.00017825,2]
[389524932,1759696248377,-500.0,0.00017825,2]
[389524933,1759696248386,-500.0,0.00017825,2]
[389524934,1759696248395,-500.0,0.00017825,2]
[389524935,1759696248404,-500.0,0.00017825,2]
[389524936,1759696248413,-500.0,0.00017825,2]
[389524937,1759696248421,-500.0,0.00017825,2]
[389524938,1759696248430,-500.0,0.00017825,2]
[389524939,1759696248439,-500.0,0.00017825,2]
[389524940,1759696248448,-500.0,0.00017825,2]
[389524941,1759696248457,-506.93223394,0.00017825,2]
[389524942,1759696248466,-500.0,0.00017825,2]
[389524943,1759696248475,-500.0,0.00017825,2]
[389524944,1759696248484,-500.0,0.00017825,2]
[389524945,1759696248493,-151.0,0.00017826,2]
[389524946,1759696248502,-151.0,0.00017826,2]
[389524947,1759696248511,-151.0,0.00017826,2]
[389524948,1759696248520,-151.0,0.00017826,2]
[389524949,1759696248530,-151.0,0.00017826,2]
[389524950,1759696248539,-151.0,0.00017826,2]
[389524951,1759696248548,-500.0,0.00017834,2]
[389524952,1759696248557,-500.0,0.00017841,2]
[389524953,1759696248567,-500.0,0.00017841,2]
[389524954,1759696248575,-500.0,0.00017841,2]
[389524955,1759696248584,-500.0,0.00017841,2]
[389524956,1759696248594,-500.0,0.00017841,2]
[389524957,1759696248603,-500.0,0.00017841,2]
[389524958,1759696248613,-303.56566882,0.00017841,2]
[389524959,1759696248622,-500.0,0.00017841,2]
[389524960,1759696248631,-500.0,0.00017841,2]
[389524961,1759696248640,-500.0,0.00017841,2]
[389524962,1759696248650,-168.907607,0.00017841,2]
[389524963,1759696248659,-151.0,0.00017841,2]
[389524964,1759696248669,-151.0,0.00017841,2]
[389524965,1759696248678,-151.0,0.00017841,2]
[389524966,1759696248726,-269.592529,0.00017841,2]
[389524967,1759696248735,-151.0,0.00017841,2]
[389524968,1759696248744,-151.0,0.00017841,2]
[389524969,1759696248754,-500.0,0.00017841,2]
[389524970,1759696248763,-500.0,0.00017841,2]
[389524971,1759696248773,-500.0,0.0001786,2]
[389524972,1759696248782,-151.0,0.0001786,2]
[389524973,1759696248797,-151.0,0.0001786,2]
[389524974,1759696248807,-151.0,0.0001786,2]
[389524975,1759696248816,-178.71656,0.0001786,2]
[389524976,1759696248825,-151.0,0.0001786,2]
[389524977,1759696248835,-178.71656,0.0001786,2]
[389524978,1759696248844,-178.71656,0.0001786,2]
[389524979,1759696248853,-151.0,0.0001786,2]
[389524980,1759696248864,-178.71656,0.0001786,2]
[389524981,1759696248873,-151.0,0.0001786,2]
[389524982,1759696248883,-151.0,0.0001786,2]
[389524983,1759696248892,-151.0,0.0001786,2]
[389524984,1759696248901,-1966.94421347,0.000179,2]
[389524985,1759696248911,-1391.0,0.00017918,2]
[389524986,1759696248920,-396.0,0.00017938,2]
[389524987,1759696248930,-250.0,0.00017941,2]
[389524988,1759696248939,-1391.0,0.00017951,2]
[389524989,1759696248948,-420.0,0.00017963,2]
[389524990,1759696248957,-167.6057348,0.00017975,2]
[389524991,1759696248966,-595.029133,0.00017975,2]
[389524992,1759696248976,-325.3361068,0.00017975,2]
[389524993,1759696248985,-297.5145665,0.00017975,2]
[389524994,1759696248994,-176.92738512,0.00017982,2]
[389524995,1759696249003,-3257.70136664,0.00017988,2]
[389524996,1759696249012,-1357.53925577,0.00017996,2]
[389524997,1759696249021,-1000.0,0.00018,2]
[389524998,1759696249031,-2865.05547367,0.00018,2]
[389524999,1759696249040,-116621.09222936,0.00018,2]
[389525000,1759696249049,-5014.0,0.00018,2]
[389525001,1759696249058,-21395.83294621,0.00018,2]
[389525002,1759696249067,-5055.65863386,0.00018,2]
[389525003,1759696249409,-494.0,0.00016438,2]
[389525004,1759696249420,-6.0,0.00016438,2]
[389525005,1759696249430,-429.79460205,0.00016438,2]
[389525006,1759696249440,-70.20539795,0.00016438,2]
[389525007,1759696249450,-502.23,0.00016712,2]
[389525008,1759696249462,-500.0,0.00016712,2]
[389525009,1759696249473,-500.0,0.00016986,2]
[389525010,1759696249482,-2841.752848,0.0001726,2]
[389525011,1759696249492,-500.0,0.0001726,2]
[389525012,1759696249502,-2841.752848,0.00017808,2]
[389525013,1759696249511,-93404.74628292,0.00018,2]
[389525014,1759696249765,-2841.752848,0.0001726,2]
[389525015,1759696249775,-247.81,0.00017534,2]
[389525016,1759696249784,-725.54546811,0.00017808,2]
[389525017,1759696249803,-2116.20737989,0.00017808,2]
[389525018,1759696249812,-121.73958839,0.00018,2]
[389525019,1759696250122,-500.0,0.00016438,2]
[389525020,1759696250131,-500.0,0.00016438,2]
[389525021,1759696250141,-500.0,0.00016712,2]
[389525022,1759696250151,-500.0,0.00016712,2]
[389525023,1759696250160,-500.0,0.00016986,2]
[389525024,1759696250169,-500.0,0.00016986,2]
[389525025,1759696250178,-1601.83054675,0.0001726,2]
[389525035,1759696646928,303.41361538,0.00015853,2]
[389525038,1759696837801,542.092601,0.00015437,2]
[389525043,1759697061650,446.74799191,0.00019504,10]
[389525044,1759697061891,446.74799191,0.00019887,11]
[389525046,1759697233279,398.3776138,0.00015503,2]
[389525047,1759697234852,1593.51045521,0.00015503,2]
[389525048,1759697236759,3581.8131257,0.00015503,2]
[389525049,1759697251127,-173.52433529,0.00016013,2]
[389525080,1759697432706,-300.0,0.00016013,2]
[389525082,1759697432716,-300.0,0.00016316,2]
[389525084,1759697432726,-300.0,0.00016317,2]
[389525086,1759697432735,-300.0,0.00016317,2]
[389525087,1759697432744,-300.0,0.00016317,2]
[389525089,1759697432754,-300.0,0.00016317,2]
[389525091,1759697432763,-1200.0,0.00016317,2]
[389525094,1759697432772,-324.0,0.00016413,2]
[389525097,1759697432781,-284.43,0.00016428,3]
[389525100,1759697432790,-853.31,0.00016428,3]
[389525103,1759697432799,-500.0,0.00016437,2]
[389525105,1759697432808,-500.0,0.00016437,2]
[389525106,1759697432816,-500.0,0.00016437,2]
[389525108,1759697432825,-500.0,0.00016437,2]
[389525110,1759697432834,-500.0,0.00016437,2]
[389525112,1759697432844,-421.99591831,0.00016437,2]
[389525113,1759697432853,-500.0,0.00016437,2]
[389525114,1759697432862,-300.0,0.00016437,2]
[389525115,1759697432871,-500.0,0.00016437,2]
[389525116,1759697432880,-500.0,0.00016437,2]
[389525117,1759697432889,-614.34648956,0.00016437,2]
[389525118,1759697432898,-500.0,0.00016437,2]
[389525119,1759697432907,-500.0,0.00016437,2]
[389525120,1759697432918,-500.0,0.00016437,2]
[389525121,1759697432928,-445.95848366,0.00016437,2]
[389525122,1759697432937,-500.0,0.00016437,2]
[389525123,1759697432945,-186.13411873,0.00016437,2]
[389525124,1759697432955,-217.15086783,0.00016437,2]
[389525125,1759697432964,-500.0,0.00016438,2]
[389525126,1759697432972,-500.0,0.00016438,2]
[389525127,1759697432981,-556.2695863,0.00016438,2]
[389525128,1759697432990,-500.0,0.00016438,2]
[389525129,1759697433010,-527.91574399,0.00016438,3]
[389525130,1759697433019,-265.84797523,0.00016438,2]
[389525131,1759697433028,-500.0,0.00016438,2]
[389525132,1759697433036,-500.0,0.00016438,2]
[389525133,1759697433045,-500.0,0.00016438,2]
[389525134,1759697433055,-550.57,0.00016438,2]
[389525135,1759697433064,-500.0,0.00016438,2]
[389525136,1759697433073,-500.0,0.00016438,2]
[389525137,1759697433082,-500.0,0.00016438,2]
[389525138,1759697433091,-500.0,0.00016438,2]
[389525139,1759697433100,-500.0,0.00016438,2]
[389525140,1759697433109,-500.0,0.00016438,2]
[389525141,1759697433118,-500.0,0.00016438,2]
[389525142,1759697433127,-545.39,0.00016438,2]